Workbook

Sheet Информация
A7: адрес: | B7: Воронеж, Ленинский пр-т, д.174 | F7: www.shkolnikopt.ru
A8: тел./факс: | B8: (473) 280-27-27, 280-27-28, 260-69-69
A9: e-mail: | B9: 2802728@gmail.com
A11: СКИДКИ | F11: ДОСТАВКА ТОВАРА ПО ГОРОДУ
A12: сумма покупки | B12: скидка на товар по суперпредложению (собственный импорт из Китая) | C12: скидка на товар по спецпредложению | D12: скидка на остальной товар | F12: при покупке на сумму от 8 000р. - доставка БЕСПЛАТНАЯ!
A13: 8000 | B13: 0.07 | C13: 0.05 | D13: 0.02 | F13: при покупке на сумму менее 8 000р. - стоимость доставки 300р.
A14: 15000 | B14: 0.12 | C14: 0.1 | D14: 0.04
A15: 30000 | B15: 0.14 | C15: 0.12 | D15: 0.06 | F15: ДОСТАВКА ТОВАРА ВНЕ ГОРОДА
A16: 50000 | B16: 0.17 | C16: 0.15 | D16: 0.08
A17: 100000 | B17: 0.2 | C17: 0.18 | D17: 0.09 | F17: стоимость доставки устанавливается из расчета 10р.00к. за 1 км пути (скидка на доставку = 1% от суммы покупки !)
A18: 150000 | B18: 0.22 | C18: 0.2 | D18: 0.1
A19: действует система накопительных скидок
A21: Чтобы работала кнопка "Выгрузка заказа", необходимо включить макросы (по умолчанию в Excel они отключены)
A22: С удовольствием рассмотрим Ваши замечания и предложения по нашему с Вами сотрудничеству.

Sheet Прайс-лист
D1: 2 июля 2018 г.
B3: введите в эти поля свои скидки от оптовой цены
B4: обычный товар | C4: 0
B5: "спецпредложение" - желтым цветом (скидка больше) | C5: 0
B6: "суперпредложение" - зеленым цветом (прямые поставки из Китая, скидка еще больше) | C6: 0
B7: на товар выделенный красным цветом - фиксированная цена, скидка не распространяется | E7: сумма заказа
B8: количество в упаковке указано для удобства, заказывать можно любое количество | E8: =SUM(F:F) -> 0
A9: код | B9: наименование | C9: оптовая цена со скидкой | D9: упаковка | E9: заказ, шт. | F9: сумма, р.
A10: Игрушки
A11: Bunchems - конструкторы "липучка"
A12: 130433 | B12: BUNCHEMS. Конструктор из липучек 100 деталей (GBE-003) в коробке | C12: =ROUND((1-Skidka2)*31.65,2) -> 31.65 | D12: 1 / 100 | F12: =E12*C12 -> 0 | G12: фото | K12: *
A13: 128379 | B13: BUNCHEMS. Конструктор из липучек 300 деталей (VJ-301) в коробке | C13: =ROUND((1-Skidka1)*90.6,2) -> 90.6 | D13: 1 / 48 / 50 | F13: 0 | G13: фото
A14: 128382 | B14: BUNCHEMS. Конструктор из липучек 800 деталей (BT-857) в коробке | C14: =ROUND((1-Skidka2)*160,2) -> 160 | D14: 1 / 28 | F14: 0 | G14: фото | K14: *
A15: Puzzle
A16: 143403 | B16: MAXI-пазлы "ZigZag. Для принцесс" (02503) 18 элементов | C16: =ROUND((1-Skidka2)*170.6,2) -> 170.6 | D16: 14 | F16: 0 | G16: фото | K16: *
A17: 101889 | B17: MAXI-пазлы "Африканские животные" (3520) | C17: =ROUND((1-Skidka1)*134.4,2) -> 134.4 | D17: 16 | F17: 0 | G17: фото
A18: 143405 | B18: MAXI-пазлы "Веселый счет" парные (02513) 20 элементов | C18: =ROUND((1-Skidka2)*170.6,2) -> 170.6 | D18: 14 | F18: 0 | G18: фото | K18: *
A19: 143399 | B19: MAXI-пазлы "Водный мир" (02511) 24 элемента | C19: =ROUND((1-Skidka2)*316.7,2) -> 316.7 | D19: 10 | F19: 0 | G19: фото | K19: *
A20: 107643 | B20: MAXI-пазлы "Городской транспорт" (03521) | C20: =ROUND((1-Skidka1)*134.4,2) -> 134.4 | D20: 16 | F20: 0 | G20: фото
A21: 146694 | B21: MAXI-пазлы "Домашние животные" (02642) 14 элементов | C21: =ROUND((1-Skidka2)*104,2) -> 104 | D21: 15 | F21: 0 | G21: фото | K21: *
A22: 107644 | B22: MAXI-пазлы "Домашние животные" (03522) | C22: =ROUND((1-Skidka1)*134.4,2) -> 134.4 | D22: 16 | F22: 0 | G22: фото
A23: 142724 | B23: MAXI-пазлы "Зоопарк" (02508) 24 элемента | C23: =ROUND((1-Skidka2)*316.7,2) -> 316.7 | D23: 10 | F23: 0 | G23: фото | K23: *
A24: 107645 | B24: MAXI-пазлы "Игрушки" (03523) | C24: =ROUND((1-Skidka1)*134.4,2) -> 134.4 | D24: 16 | F24: 0 | G24: фото
A25: 143406 | B25: MAXI-пазлы "Кто где живет?" парные (02512) 20 элементов | C25: =ROUND((1-Skidka2)*170.6,2) -> 170.6 | D25: 14 | F25: 0 | G25: фото | K25: *
A26: 146695 | B26: MAXI-пазлы "Лесные животные" (02643) 13 элементов | C26: =ROUND((1-Skidka2)*104,2) -> 104 | D26: 15 | F26: 0 | G26: фото | K26: *
A27: 140596 | B27: MAXI-пазлы "Лесные животные" (03524) | C27: =ROUND((1-Skidka1)*134.4,2) -> 134.4 | D27: 16 | F27: 0 | G27: фото
A28: 107646 | B28: MAXI-пазлы "Листья деревьев" (3525) | C28: =ROUND((1-Skidka2)*145.6,2) -> 145.6 | D28: 14 | F28: 0 | G28: фото | K28: *
A29: 142723 | B29: MAXI-пазлы "Милашки" (02509) 24 элемента | C29: =ROUND((1-Skidka2)*327.6,2) -> 327.6 | D29: 10 | F29: 0 | G29: фото | K29: *
A30: 101890 | B30: MAXI-пазлы "Морские обитатели" (03526) | C30: =ROUND((1-Skidka1)*134.4,2) -> 134.4 | D30: 16 | F30: 0 | G30: фото
A31: 107647 | B31: MAXI-пазлы "Овощи 1" (03527) | C31: =ROUND((1-Skidka2)*138.1,2) -> 138.1 | D31: 16 | F31: 0 | G31: фото | K31: *
A32: 107648 | B32: MAXI-пазлы "Овощи 2" (03528) | C32: =ROUND((1-Skidka2)*138.1,2) -> 138.1 | D32: 16 | F32: 0 | G32: фото | K32: *
A33: 107649 | B33: MAXI-пазлы "Пресмыкающиеся" (3529) | C33: =ROUND((1-Skidka2)*145.6,2) -> 145.6 | D33: 14 | F33: 0 | G33: фото | K33: *
A34: 107650 | B34: MAXI-пазлы "Птицы" (3530) | C34: =ROUND((1-Skidka1)*134.4,2) -> 134.4 | D34: 16 | F34: 0 | G34: фото
A35: 143401 | B35: MAXI-пазлы "Собери в группы" тройные (02507) 24 элемента | C35: =ROUND((1-Skidka2)*170.6,2) -> 170.6 | D35: 14 | F35: 0 | G35: фото | K35: *
A36: 101891 | B36: MAXI-пазлы "Спецтехника" (03531) | C36: =ROUND((1-Skidka2)*138.1,2) -> 138.1 | D36: 16 | F36: 0 | G36: фото | K36: *
A37: 107651 | B37: MAXI-пазлы "Фрукты 1" (03532) | C37: =ROUND((1-Skidka2)*138.1,2) -> 138.1 | D37: 16 | F37: 0 | G37: фото | K37: *
A38: 107652 | B38: MAXI-пазлы "Фрукты 2" (03533) | C38: =ROUND((1-Skidka2)*138.1,2) -> 138.1 | D38: 16 | F38: 0 | G38: фото | K38: *
A39: 146696 | B39: MAXI-пазлы "Фрукты" (02645) 14 элементов | C39: =ROUND((1-Skidka2)*104,2) -> 104 | D39: 15 | F39: 0 | G39: фото | K39: *
A40: 107653 | B40: MAXI-пазлы "Цветы" (03534) | C40: =ROUND((1-Skidka2)*138.1,2) -> 138.1 | D40: 16 | F40: 0 | G40: фото | K40: *
A41: 143402 | B41: MAXI-пазлы "Что получится?" тройные (02506) 24 элемента | C41: =ROUND((1-Skidka2)*170.6,2) -> 170.6 | D41: 14 | F41: 0 | G41: фото | K41: *
A42: 101892 | B42: MAXI-пазлы "Ягоды" (03535) | C42: =ROUND((1-Skidka2)*138.1,2) -> 138.1 | D42: 16 | F42: 0 | G42: фото | K42: *
A43: 142721 | B43: MAXI-пазлы парные "Учим цвета" (02515) 10*2 деталей | C43: =ROUND((1-Skidka2)*170.6,2) -> 170.6 | D43: 14 | F43: 0 | G43: фото | K43: *
A44: 142722 | B44: MAXI-пазлы парные "Чей малыш?" (02514) 10*2 деталей | C44: =ROUND((1-Skidka2)*170.6,2) -> 170.6 | D44: 14 | F44: 0 | G44: фото | K44: *
A45: 143463 | B45: Puzzle STEP 54 элемента "Marvel - 2" ассорти (71160) | C45: =ROUND((1-Skidka2)*13,2) -> 13 | D45: 240 | F45: 0 | G45: фото | K45: *
A46: 143460 | B46: Puzzle STEP 54 элемента "Studio pets by myrna" (71153) | C46: =ROUND((1-Skidka2)*10,2) -> 10 | D46: 240 | F46: 0 | G46: фото | K46: *
A47: 132059 | B47: Puzzle STEP 54 элемента "Trolls" (71149) | C47: =ROUND((1-Skidka2)*13,2) -> 13 | D47: 240 | F47: 0 | G47: фото | K47: *
A48: 140802 | B48: Puzzle STEP 54 элемента "Дисней - 4" (71152) | C48: =ROUND((1-Skidka2)*13,2) -> 13 | D48: 240 | F48: 0 | G48: фото | K48: *
A49: 92934 | B49: Puzzle STEP 54 элемента "Дисней. Самолеты" (71124) | C49: =ROUND((1-Skidka1)*13,2) -> 13 | D49: 240 | F49: 0 | G49: фото
A50: 123811 | B50: Puzzle STEP 54 элемента "Дисней. Тачки/Самолеты" (71141) | C50: =ROUND((1-Skidka2)*13,2) -> 13 | D50: 240 | F50: 0 | G50: фото | K50: *
A51: 104977 | B51: Puzzle STEP 54 элемента "Драконы" (71136) | C51: =ROUND((1-Skidka1)*13,2) -> 13 | D51: 240 | F51: 0 | G51: фото
A52: 123813 | B52: Puzzle STEP 54 элемента "Черепашки Ниндзя" (71145) | C52: =ROUND((1-Skidka1)*13,2) -> 13 | D52: 240 | F52: 0 | G52: фото
A53: 143533 | B53: Puzzle STEP 60 элементов "Studio pets by myrna" (81172) | C53: =ROUND((1-Skidka2)*40,2) -> 40 | D53: 48 | F53: 0 | G53: фото | K53: *
A54: 140830 | B54: Puzzle STEP 60 элементов "Warner Bros. Веселые мелодии" (81162) | C54: =ROUND((1-Skidka2)*52,2) -> 52 | D54: 48 | F54: 0 | G54: фото | K54: *
A55: 140833 | B55: Puzzle STEP 60 элементов "Warner Bros. Гарри Поттер" (81166) | C55: =ROUND((1-Skidka2)*52,2) -> 52 | D55: 48 | F55: 0 | G55: фото | K55: *
A56: 140832 | B56: Puzzle STEP 60 элементов "Warner Bros. Скуби-ду" (81164) | C56: =ROUND((1-Skidka2)*52,2) -> 52 | D56: 48 | F56: 0 | G56: фото | K56: *
A57: 38050 | B57: Puzzle STEP 60 элементов "Айболит" (81001) | C57: =ROUND((1-Skidka2)*52,2) -> 52 | D57: 48 | F57: 0 | G57: фото | K57: *
A58: 38060 | B58: Puzzle STEP 60 элементов "Дисней. Король Лев" (81114) | C58: =ROUND((1-Skidka2)*52,2) -> 52 | D58: 48 | F58: 0 | G58: фото | K58: *
A59: 132112 | B59: Puzzle STEP 60 элементов "Дисней. Моана" (81154) | C59: =ROUND((1-Skidka2)*52,2) -> 52 | D59: 48 | F59: 0 | G59: фото | K59: *
A60: 45399 | B60: Puzzle STEP 60 элементов "Золотой ключик" (81002) | C60: =ROUND((1-Skidka2)*40,2) -> 40 | D60: 48 | F60: 0 | G60: фото | K60: *
A61: 114680 | B61: Puzzle STEP 60 элементов "Как казаки" (81138) | C61: =ROUND((1-Skidka2)*52,2) -> 52 | D61: 48 | F61: 0 | G61: фото | K61: *
A62: 114679 | B62: Puzzle STEP 60 элементов "Кот в сапогах" (81136) | C62: =ROUND((1-Skidka2)*52,2) -> 52 | D62: 24 | F62: 0 | G62: фото | K62: *
A63: 114668 | B63: Puzzle STEP 80 элементов "DreamWorks" (77134) | C63: =ROUND((1-Skidka2)*27,2) -> 27 | D63: 128 | F63: 0 | G63: фото | K63: *
A64: 143523 | B64: Puzzle STEP 80 элементов "Marvel - 2" (77156) | C64: =ROUND((1-Skidka2)*27,2) -> 27 | D64: 128 | F64: 0 | G64: фото | K64: *
A65: 114670 | B65: Puzzle STEP 80 элементов "MARVEL. Мстители-2" (77138) | C65: =ROUND((1-Skidka1)*27,2) -> 27 | D65: 128 | F65: 0 | G65: фото
A66: 143521 | B66: Puzzle STEP 80 элементов "Studio pets by myrna" (77149) | C66: =ROUND((1-Skidka2)*21,2) -> 21 | D66: 128 | F66: 0 | G66: фото | K66: *
A67: 132080 | B67: Puzzle STEP 80 элементов "Trolls" (77144) | C67: =ROUND((1-Skidka2)*27,2) -> 27 | D67: 128 | F67: 0 | G67: фото | K67: *
A68: 143522 | B68: Puzzle STEP 80 элементов "Warner Bros" (77155) | C68: =ROUND((1-Skidka2)*27,2) -> 27 | D68: 128 | F68: 0 | G68: фото | K68: *
A69: 123839 | B69: Puzzle STEP 80 элементов "WOT, WOWS, WOWP" (77139) | C69: =ROUND((1-Skidka1)*27,2) -> 27 | D69: 128 | F69: 0 | G69: фото
A70: 114669 | B70: Puzzle STEP 80 элементов "Дисней. Звездные войны" (77136) | C70: =ROUND((1-Skidka2)*27,2) -> 27 | D70: 128 | F70: 0 | G70: фото | K70: *
A71: 120153 | B71: Puzzle STEP 80 элементов "Дисней. Тачки/Самолеты" (77135) | C71: =ROUND((1-Skidka1)*27,2) -> 27 | D71: 128 | F71: 0 | G71: фото
A72: 143520 | B72: Puzzle STEP 80 элементов "Дисней-5" (77148) | C72: =ROUND((1-Skidka2)*27,2) -> 27 | D72: 128 | F72: 0 | G72: фото | K72: *
A73: 123842 | B73: Puzzle STEP 80 элементов "Зл. птички" (77143) | C73: =ROUND((1-Skidka1)*22,2) -> 22 | D73: 1 | F73: 0
A74: 70608 | B74: Puzzle STEP 80 элементов "Золотая серия - 10. Животные" (77010) | C74: =ROUND((1-Skidka2)*21,2) -> 21 | D74: 128 | F74: 0 | G74: фото | K74: *
A75: 140805 | B75: Puzzle STEP 80 элементов "Золотая серия - 5. Мультфильмы" (77019) | C75: =ROUND((1-Skidka2)*27,2) -> 27 | D75: 128 | F75: 0 | G75: фото | K75: *
A76: 123838 | B76: Puzzle STEP 80 элементов "Киевнаучфильм" (77131) | C76: =ROUND((1-Skidka1)*27,2) -> 27 | D76: 128 | F76: =E76*C76 -> 0 | G76: фото
A77: 136006 | B77: Puzzle STEP 80 элементов "Любимые герои" (77020) | C77: =ROUND((1-Skidka2)*21,2) -> 21 | D77: 128 | F77: 0 | G77: фото | K77: *
A78: 123840 | B78: Puzzle STEP 80 элементов "Черпашки Ниндзя" (77140) | C78: =ROUND((1-Skidka1)*27,2) -> 27 | D78: 128 | F78: 0 | G78: фото
A79: 109444 | B79: Puzzle STEP 104 элемента "MARVEL. Мстители-2" (82137) | C79: =ROUND((1-Skidka2)*57,2) -> 57 | D79: 48 | F79: 0 | G79: фото | K79: *
A80: 140838 | B80: Puzzle STEP 104 элемента "MARVEL. Мстители-3" (82169) | C80: =ROUND((1-Skidka2)*57,2) -> 57 | D80: 48 | F80: 0 | G80: фото | K80: *
A81: 143540 | B81: Puzzle STEP 104 элемента "MARVEL. Человек Паук -2" (82168) | C81: =ROUND((1-Skidka2)*57,2) -> 57 | D81: 48 | F81: 0 | G81: фото | K81: *
A82: 105177 | B82: Puzzle STEP 104 элемента "MARVEL. Человек-паук" (82111) | C82: =ROUND((1-Skidka2)*57,2) -> 57 | D82: 48 | F82: 0 | G82: фото | K82: *
A83: 143542 | B83: Puzzle STEP 104 элемента "Studio pets by myrna" (82171) | C83: =ROUND((1-Skidka2)*44,2) -> 44 | D83: 48 | F83: 0 | G83: фото | K83: *
A84: 140837 | B84: Puzzle STEP 104 элемента "Warner Bros. Гарри Поттер" (82166) | C84: =ROUND((1-Skidka2)*57,2) -> 57 | D84: 48 | F84: 0 | G84: фото | K84: *
A85: 143543 | B85: Puzzle STEP 104 элемента "Warner Bros. Лига справедливости" (82172) | C85: =ROUND((1-Skidka2)*57,2) -> 57 | D85: 48 | F85: 0 | G85: фото | K85: *
A86: 143538 | B86: Puzzle STEP 104 элемента "Warner Bros. Том и Джерри" (82165) | C86: =ROUND((1-Skidka2)*57,2) -> 57 | D86: 48 | F86: 0 | G86: фото | K86: *
A87: 143535 | B87: Puzzle STEP 104 элемента "Дисней. Золушка - 2" (82162) | C87: =ROUND((1-Skidka2)*57,2) -> 57 | D87: 48 | F87: 0 | G87: фото | K87: *
A88: 143534 | B88: Puzzle STEP 104 элемента "Дисней. Русалочка - 2" (82161) | C88: =ROUND((1-Skidka2)*57,2) -> 57 | D88: 48 | F88: 0 | G88: фото | K88: *
A89: 105034 | B89: Puzzle STEP 104 элемента "Домовенок Кузя" (82020) | C89: =ROUND((1-Skidka2)*57,2) -> 57 | D89: 48 | F89: 0 | G89: фото | K89: *
A90: 105043 | B90: Puzzle STEP 104 элемента "Драконы" (82128) | C90: =ROUND((1-Skidka1)*57,2) -> 57 | D90: 48 | F90: 0 | G90: фото
A91: 109445 | B91: Puzzle STEP 104 элемента "Как казаки..." (82138) | C91: =ROUND((1-Skidka2)*57,2) -> 57 | D91: 48 | F91: 0 | G91: фото | K91: *
A92: 143539 | B92: Puzzle STEP 104 элемента "Королевская академия" (82167) | C92: =ROUND((1-Skidka2)*57,2) -> 57 | D92: 48 | F92: 0 | G92: фото | K92: *
A93: 45407 | B93: Puzzle STEP 104 элемента "Крошка Енот" (82006) | C93: =ROUND((1-Skidka2)*57,2) -> 57 | D93: 48 | F93: 0 | G93: фото | K93: *
A94: 132116 | B94: Puzzle STEP 104 элемента "Моана" (82157) | C94: =ROUND((1-Skidka1)*57,2) -> 57 | D94: 48 | F94: 0 | G94: фото
A95: 114682 | B95: Puzzle STEP 104 элемента "Пингвины из Мадагаскара" (82140) | C95: =ROUND((1-Skidka1)*57,2) -> 57 | D95: 24 / 48 | F95: 0 | G95: фото
A96: 132115 | B96: Puzzle STEP 104 элемента "Три богатыря" (82155) | C96: =ROUND((1-Skidka2)*57,2) -> 57 | D96: 48 | F96: 0 | G96: фото | K96: *
A97: 114660 | B97: Puzzle STEP 120 элементов "DreamWorks" (75130) | C97: =ROUND((1-Skidka2)*42,2) -> 42 | D97: 64 | F97: 0 | G97: фото | K97: *
A98: 100138 | B98: Puzzle STEP 120 элементов "Hasbro" (75117) | C98: =ROUND((1-Skidka2)*42,2) -> 42 | D98: 64 | F98: 0 | G98: фото | K98: *
A99: 143466 | B99: Puzzle STEP 120 элементов "Marvel - 2" ассорти (75153) | C99: =ROUND((1-Skidka2)*42,2) -> 42 | D99: 64 | F99: 0 | G99: фото | K99: *
A100: 114662 | B100: Puzzle STEP 120 элементов "MARVEL. Мстители-2" (75135) | C100: =ROUND((1-Skidka1)*42,2) -> 42 | D100: 64 | F100: 0 | G100: фото
A101: 123817 | B101: Puzzle STEP 120 элементов "Mattel" (75136) | C101: =ROUND((1-Skidka2)*42,2) -> 42 | D101: 64 | F101: 0 | G101: фото | K101: *
A102: 143465 | B102: Puzzle STEP 120 элементов "Studio pets by myrna" (75145) | C102: =ROUND((1-Skidka2)*32,2) -> 32 | D102: 64 | F102: 0 | G102: фото | K102: *
A103: 140804 | B103: Puzzle STEP 120 элементов "Warner Bros." (75152) | C103: =ROUND((1-Skidka2)*42,2) -> 42 | D103: 64 | F103: 0 | G103: фото | K103: *
A104: 123819 | B104: Puzzle STEP 120 элементов "WOT, WOWS, WOWP" (75138) | C104: =ROUND((1-Skidka2)*42,2) -> 42 | D104: 64 | F104: 0 | G104: фото | K104: *
A105: 140803 | B105: Puzzle STEP 120 элементов "Дисней - 4" (75144) | C105: =ROUND((1-Skidka2)*42,2) -> 42 | D105: 64 | F105: 0 | G105: фото | K105: *
A106: 92939 | B106: Puzzle STEP 120 элементов "Дисней. Король Лев" (75105) | C106: =ROUND((1-Skidka2)*42,2) -> 42 | D106: 64 | F106: 0 | G106: фото | K106: *
A107: 92941 | B107: Puzzle STEP 120 элементов "Дисней. Самолеты" (75114) | C107: =ROUND((1-Skidka2)*42,2) -> 42 | D107: 64 | F107: 0 | G107: фото | K107: *
A108: 100139 | B108: Puzzle STEP 120 элементов "Драконы" (75126) | C108: =ROUND((1-Skidka1)*35.6,2) -> 35.6 | D108: 1 | F108: 0 | G108: фото
A109: 123820 | B109: Puzzle STEP 120 элементов "Зл. птички" (75140) | C109: =ROUND((1-Skidka1)*34.21,2) -> 34.21 | D109: 1 | F109: 0
A110: 123816 | B110: Puzzle STEP 120 элементов "Киевнаучфильм" (75127) | C110: =ROUND((1-Skidka2)*42,2) -> 42 | D110: 64 | F110: 0 | G110: фото | K110: *
A111: 87743 | B111: Puzzle STEP 120 элементов "Мадагаскар - 3" (75107) | C111: =ROUND((1-Skidka2)*42,2) -> 42 | D111: 64 | F111: 0 | G111: фото | K111: *
A112: 109406 | B112: Puzzle STEP 120 элементов "Союзмультфильм" (75028) | C112: =ROUND((1-Skidka2)*35.6,2) -> 35.6 | D112: 64 | F112: 0 | G112: фото | K112: *
A113: 123818 | B113: Puzzle STEP 120 элементов "Черепашки Ниндзя" (75137) | C113: =ROUND((1-Skidka2)*42,2) -> 42 | D113: 64 | F113: 0 | G113: фото | K113: *
A114: 135995 | B114: Puzzle STEP 160 элементов "Бой на Калиновом мосту" (72067) | C114: =ROUND((1-Skidka2)*53,2) -> 53 | D114: 24 | F114: 0 | G114: фото | K114: *
A115: 58563 | B115: Puzzle STEP 160 элементов "Союзмультфильм. Малыш и карлсон" (72001) | C115: =ROUND((1-Skidka2)*69,2) -> 69 | D115: 24 | F115: 0 | G115: фото | K115: *
A116: 114656 | B116: Puzzle STEP 260 элементов "Союзмультфильм. Винни Пух" (74061) | C116: =ROUND((1-Skidka2)*82,2) -> 82 | D116: 24 | F116: 0 | G116: фото | K116: *
A117: 135998 | B117: Puzzle STEP 260 элементов "Союзмультфильм. Иван-царевич и Серый волк" (74064) | C117: =ROUND((1-Skidka2)*63,2) -> 63 | D117: 24 | F117: 0 | G117: фото | K117: *
A118: 39385 | B118: Puzzle STEP 360 элементов "Буратино" (73031) | C118: =ROUND((1-Skidka2)*105,2) -> 105 | D118: 12 | F118: 0 | G118: фото | K118: *
A119: 37992 | B119: Puzzle STEP 360 элементов "Кот Леопольд" (73020) | C119: =ROUND((1-Skidka2)*136,2) -> 136 | D119: 12 | F119: 0 | G119: фото | K119: *
A120: 39382 | B120: Puzzle STEP 360 элементов "Львенок и черепаха" (73006) | C120: =ROUND((1-Skidka2)*136,2) -> 136 | D120: 12 | F120: 0 | G120: фото | K120: *
A121: 67988 | B121: Puzzle STEP 360 элементов "Ну, погоди!" (73008) | C121: =ROUND((1-Skidka2)*136,2) -> 136 | D121: 12 | F121: 0 | G121: фото | K121: *
A122: 37991 | B122: Puzzle STEP 360 элементов "Ну, погоди!-2" (73010) | C122: =ROUND((1-Skidka2)*136,2) -> 136 | D122: 12 | F122: 0 | G122: фото | K122: *
A123: 96197 | B123: Puzzle STEP 360 элементов "Простоквашино" (73011) | C123: =ROUND((1-Skidka2)*136,2) -> 136 | D123: 12 | F123: 0 | G123: фото | K123: *
A124: 100135 | B124: Puzzle STEP 360 элементов "Союзмультфильм. Винни Пух" (73066) | C124: =ROUND((1-Skidka2)*136,2) -> 136 | D124: 12 | F124: 0 | G124: фото | K124: *
A125: 143524 | B125: Puzzle STEP 560 элементов "Золушка" (78099) | C125: =ROUND((1-Skidka2)*148,2) -> 148 | D125: 12 | F125: 0 | G125: фото | K125: *
A126: 143525 | B126: Puzzle STEP 560 элементов "Русалочка" (78100) | C126: =ROUND((1-Skidka2)*114,2) -> 114 | D126: 12 | F126: 0 | G126: фото | K126: *
A127: 100173 | B127: Puzzle STEP 560 элементов "Союзмультфильм. Винни Пух" (78084) | C127: =ROUND((1-Skidka2)*148,2) -> 148 | D127: 12 | F127: 0 | G127: фото | K127: *
A128: 50840 | B128: Puzzle STEP 560 элементов "Союзмультфильм. Ну, погоди!" (78005) | C128: =ROUND((1-Skidka2)*148,2) -> 148 | D128: 12 | F128: 0 | G128: фото | K128: *
A129: 114673 | B129: Puzzle STEP 560 элементов "Союзмультфильм. Ну, погоди!-2" (78089) | C129: =ROUND((1-Skidka2)*148,2) -> 148 | D129: 12 | F129: 0 | G129: фото | K129: *
A130: 114672 | B130: Puzzle STEP 560 элементов "Союзмультфильм. Попугай Кеша" (78088) | C130: =ROUND((1-Skidka2)*148,2) -> 148 | D130: 12 | F130: 0 | G130: фото | K130: *
A131: 100172 | B131: Puzzle STEP 560 элементов "Союзмультфильм. Простоквашино" (78083) | C131: =ROUND((1-Skidka2)*148,2) -> 148 | D131: 12 | F131: 0 | G131: фото | K131: *
A132: 114671 | B132: Puzzle STEP 560 элементов "Союзмультфильм. Чебурашка" (78087) | C132: =ROUND((1-Skidka2)*148,2) -> 148 | D132: 12 | F132: 0 | G132: фото | K132: *
A133: 109435 | B133: Puzzle STEP 1000 элементов "Как казаки..." (79608) | C133: =ROUND((1-Skidka2)*239,2) -> 239 | D133: 9 | F133: 0 | G133: фото | K133: *
A134: 140815 | B134: Puzzle STEP 1000 элементов "Маяк в Портленде" (79119) | C134: =ROUND((1-Skidka2)*183,2) -> 183 | D134: 9 | F134: 0 | G134: фото | K134: *
A135: 143526 | B135: Puzzle STEP 1000 элементов "Родной край. Казань" (79700) | C135: =ROUND((1-Skidka2)*239,2) -> 239 | D135: 9 | F135: 0 | G135: фото | K135: *
A136: 140820 | B136: Puzzle STEP 1000 элементов "Родной край. Калининград" (79703) | C136: =ROUND((1-Skidka2)*239,2) -> 239 | D136: 9 | F136: 0 | G136: фото | K136: *
A137: 140818 | B137: Puzzle STEP 1000 элементов "Родной край. Москва" (79701) | C137: =ROUND((1-Skidka2)*239,2) -> 239 | D137: 9 | F137: 0 | G137: фото | K137: *
A138: 140819 | B138: Puzzle STEP 1000 элементов "Родной край. Санкт-Петербург" (79702) | C138: =ROUND((1-Skidka2)*239,2) -> 239 | D138: 9 | F138: 0 | G138: фото | K138: *
A139: 123846 | B139: Puzzle STEP 1000 элементов "Русские музеи. Всадница" (79212) | C139: =ROUND((1-Skidka2)*239,2) -> 239 | D139: 9 | F139: 0 | G139: фото | K139: *
A140: 123849 | B140: Puzzle STEP 1000 элементов "Русские музеи. Лошади у крыльца" (79214) | C140: =ROUND((1-Skidka2)*239,2) -> 239 | D140: 9 | F140: =E140*C140 -> 0 | G140: фото | K140: *
A141: 123850 | B141: Puzzle STEP 1000 элементов "Русские музеи. Неизвестная" (79215) | C141: =ROUND((1-Skidka2)*239,2) -> 239 | D141: 9 | F141: 0 | G141: фото | K141: *
A142: 123852 | B142: Puzzle STEP 1000 элементов "Русские музеи. Последние день Помпеи" (79217) | C142: =ROUND((1-Skidka1)*239,2) -> 239 | D142: 9 | F142: 0 | G142: фото
A143: 132090 | B143: Puzzle STEP 1000 элементов, авторская коллекция "Коттедж" (79534) | C143: =ROUND((1-Skidka2)*239,2) -> 239 | D143: 9 | F143: 0 | G143: фото | K143: *
A144: 132094 | B144: Puzzle STEP 1000 элементов, авторская коллекция "Солнечная аллея в Венеции" (79536) | C144: =ROUND((1-Skidka2)*239,2) -> 239 | D144: 9 | F144: 0 | G144: фото | K144: *
A145: 109428 | B145: Puzzle STEP 1000 элементов, панорама "Звездные войны" (79451) | C145: =ROUND((1-Skidka2)*239,2) -> 239 | D145: 9 | F145: 0 | G145: фото | K145: *
A146: 87727 | B146: Puzzle STEP 1000 элементов, с блестками "Волшебное озеро" (79515) | C146: =ROUND((1-Skidka2)*403,2) -> 403 | D146: 9 | F146: 0 | G146: фото | K146: *
A147: 132119 | B147: Puzzle STEP 1500 элементов "Достопримечательности Европы" (83059) | C147: =ROUND((1-Skidka2)*239,2) -> 239 | D147: 9 | F147: 0 | G147: фото | K147: *
A148: 109447 | B148: Puzzle STEP 1500 элементов "Русские музеи. Даная" (83206) | C148: =ROUND((1-Skidka2)*401,2) -> 401 | D148: 9 | F148: 0 | G148: фото | K148: *
A149: 96211 | B149: Puzzle STEP 2000 элементов "Коттедж" (84023) | C149: =ROUND((1-Skidka2)*284,2) -> 284 | D149: 9 | F149: 0 | G149: фото | K149: *
A150: 109448 | B150: Puzzle STEP 2000 элементов "Москва. Набережная" (84024) | C150: =ROUND((1-Skidka2)*284,2) -> 284 | D150: 9 | F150: 0 | G150: фото | K150: *
A151: 120164 | B151: Puzzle STEP 2000 элементов "Санкт-Петербург" (84026) | C151: =ROUND((1-Skidka2)*284,2) -> 284 | D151: 9 | F151: 0 | G151: фото | K151: *
A152: 123881 | B152: Puzzle STEP maxi 35 элементов "Барби" (91220) | C152: =ROUND((1-Skidka2)*255,2) -> 255 | D152: 9 | F152: 0 | G152: фото | K152: *
A153: 114649 | B153: Puzzle STEP напольный - лото "На прогулке" (70113) | C153: =ROUND((1-Skidka2)*299,2) -> 299 | D153: 4 | F153: 0 | G153: фото | K153: *
A154: 114650 | B154: Puzzle STEP напольный - лото "Поиграем?" (70114) | C154: =ROUND((1-Skidka2)*299,2) -> 299 | D154: 4 | F154: 0 | G154: фото | K154: *
A155: 123808 | B155: Puzzle STEP напольный - паровозики "Чей малыш?" (70116) | C155: =ROUND((1-Skidka2)*299,2) -> 299 | D155: 4 | F155: 0 | G155: фото | K155: *
A156: 87772 | B156: Puzzle STEP напольный "Букашки" малые (70107) | C156: =ROUND((1-Skidka2)*144,2) -> 144 | D156: 6 | F156: 0 | G156: фото | K156: *
A157: 87764 | B157: Puzzle STEP напольный "Джунгли" большие (70100) | C157: =ROUND((1-Skidka2)*482,2) -> 482 | D157: 4 | F157: 0 | G157: фото | K157: *
A158: 87765 | B158: Puzzle STEP напольный "Динозавры" большие (70101) | C158: =ROUND((1-Skidka2)*482,2) -> 482 | D158: 4 | F158: 0 | G158: фото | K158: *
A159: 132055 | B159: Puzzle STEP напольный "Зоопарк" малые (70121) | C159: =ROUND((1-Skidka2)*144,2) -> 144 | D159: 6 | F159: 0 | G159: фото | K159: *
A160: 87766 | B160: Puzzle STEP напольный "Машинки" большие (70102) | C160: =ROUND((1-Skidka2)*482,2) -> 482 | D160: 4 | F160: 0 | G160: фото | K160: *
A161: 132057 | B161: Puzzle STEP напольный "Морские животные" малые (70122) | C161: =ROUND((1-Skidka2)*144,2) -> 144 | D161: 6 | F161: 0 | G161: фото | K161: *
A162: 87770 | B162: Puzzle STEP напольный "Морские жители" средние (70105) | C162: =ROUND((1-Skidka2)*192,2) -> 192 | D162: 6 | F162: 0 | G162: фото | K162: *
A163: 87767 | B163: Puzzle STEP напольный "Ферма" большие (70103) | C163: =ROUND((1-Skidka2)*482,2) -> 482 | D163: 4 | F163: 0 | G163: фото | K163: *
A164: 87781 | B164: Puzzle STEP напольный "Фрукты и ягоды" малые (70112) | C164: =ROUND((1-Skidka2)*144,2) -> 144 | D164: 6 | F164: 0 | G164: фото | K164: *
A165: 128601 | B165: Пазл напольный "Веселая ферма" 24 элемента (02503) | C165: =ROUND((1-Skidka2)*266.4,2) -> 266.4 | D165: 12 | F165: 0 | G165: фото | K165: *
A166: 128602 | B166: Пазл напольный "Волшебная прогулка" 24 элемента (02500) | C166: =ROUND((1-Skidka2)*266.4,2) -> 266.4 | D166: 12 | F166: 0 | G166: фото | K166: *
A167: 128603 | B167: Пазл напольный "Динозаврики" 24 элемента (02501) | C167: =ROUND((1-Skidka2)*266.4,2) -> 266.4 | D167: 6 | F167: 0 | G167: фото | K167: *
A168: 128604 | B168: Пазл напольный "Стройка" 24 элемента (02502) | C168: =ROUND((1-Skidka2)*266.4,2) -> 266.4 | D168: 6 | F168: 0 | G168: фото | K168: *
A169: 139608 | B169: Пазлы "Disney. Красавица и Чудовище" (01853) 3+, "Десятое королевство" | C169: =ROUND((1-Skidka2)*184.8,2) -> 184.8 | D169: 9 | F169: 0 | G169: фото | K169: *
A170: 139605 | B170: Пазлы "Disney. Медвежонок Винни и его друзья" (01850) 3+, "Десятое королевство" | C170: =ROUND((1-Skidka2)*184.8,2) -> 184.8 | D170: 9 | F170: 0 | G170: фото | K170: *
A171: 139606 | B171: Пазлы "Disney. Принцессы" (01851) 3+, "Десятое королевство" | C171: =ROUND((1-Skidka2)*184.8,2) -> 184.8 | D171: 9 | F171: 0 | G171: фото | K171: *
A172: 139607 | B172: Пазлы "Disney. Симба" (01852) 3+, "Десятое королевство" | C172: =ROUND((1-Skidka2)*184.8,2) -> 184.8 | D172: 9 | F172: 0 | G172: фото | K172: *
A173: 146068 | B173: Пазлы 3D "Колобок" (02404) | C173: =ROUND((1-Skidka1)*146.4,2) -> 146.4 | D173: 10 | F173: 0 | G173: фото
A174: 146069 | B174: Пазлы 3D "Кто живет в Африке?" (02400) | C174: =ROUND((1-Skidka1)*146.4,2) -> 146.4 | D174: 10 | F174: 0 | G174: фото
A175: 146075 | B175: Пазлы 3D "Кто живет в воде?" (02401) | C175: =ROUND((1-Skidka1)*146.4,2) -> 146.4 | D175: 10 | F175: 0 | G175: фото
A176: 146070 | B176: Пазлы 3D "Кто живет в лесу?" (02402) | C176: =ROUND((1-Skidka1)*146.4,2) -> 146.4 | D176: 10 | F176: 0 | G176: фото
A177: 146071 | B177: Пазлы 3D "Кто живет на ферме?" (02403) | C177: =ROUND((1-Skidka1)*146.4,2) -> 146.4 | D177: 10 | F177: 0 | G177: фото
A178: 146072 | B178: Пазлы 3D "Репка" (02405) | C178: =ROUND((1-Skidka1)*146.4,2) -> 146.4 | D178: 10 | F178: 0 | G178: фото
A179: 146073 | B179: Пазлы 3D "Три медведя" (02407) | C179: =ROUND((1-Skidka1)*146.4,2) -> 146.4 | D179: 10 | F179: 0 | G179: фото
A180: 146074 | B180: Пазлы 3D "Три поросенка" (02406) | C180: =ROUND((1-Skidka1)*146.4,2) -> 146.4 | D180: 10 | F180: 0 | G180: фото
A181: 120866 | B181: Пазлы малышам "Зебра и жираф" (03124) | C181: =ROUND((1-Skidka2)*64.8,2) -> 64.8 | D181: 14 | F181: 0 | G181: фото | K181: *
A182: 119320 | B182: Пазлы малышам "Корова и поросенок" (03123) | C182: =ROUND((1-Skidka2)*68.32,2) -> 68.32 | D182: 14 | F182: 0 | G182: фото | K182: *
A183: 120868 | B183: Пазлы малышам "Тигренок и обезьяна" (03125) | C183: =ROUND((1-Skidka2)*64.8,2) -> 64.8 | D183: 14 | F183: 0 | G183: фото | K183: *
A184: 132550 | B184: Пазлы мягкие "Ежик" | C184: =ROUND((1-Skidka1)*63.3,2) -> 63.3 | D184: 20 | F184: 0 | G184: фото
A185: 132551 | B185: Пазлы мягкие "Пароход" | C185: =ROUND((1-Skidka1)*63.3,2) -> 63.3 | D185: 20 | F185: 0 | G185: фото
A186: 115625 | B186: Пазлы фигурные "Дюймовочка" (03835) | C186: =ROUND((1-Skidka2)*127.4,2) -> 127.4 | D186: 14 | F186: 0 | G186: фото | K186: *
A187: 101910 | B187: Пазлы фигурные "Маугли" (03836) | C187: =ROUND((1-Skidka2)*127.4,2) -> 127.4 | D187: 14 | F187: 0 | G187: фото | K187: *
A188: Yo-Yo, лизуны, "ёжики", прыгуны
A189: 76868 | B189: Yo-Yo: диск (6941) для соревнований, крутится на верёвке по-разному, на блистере | C189: =ROUND((1-Skidka3)*72.5,2) -> 72.5 | D189: 60 / 240 | F189: 0 | G189: фото | K189: **
A190: 76869 | B190: Yo-Yo: диск (6942) для соревнований, крутится на верёвке по-разному, на листе | C190: =ROUND((1-Skidka3)*72.5,2) -> 72.5 | D190: 60 / 240 | F190: 0 | G190: фото | K190: **
A191: 92707 | B191: Yo-Yo: диск (921) для начинающих, крутится, стоя на верёвке, на картоне под блистером | C191: =ROUND((1-Skidka3)*58.3,2) -> 58.3 | D191: 9 / 162 | F191: 0 | G191: фото | K191: **
A192: 123399 | B192: Лизун "Дельфин" (FJ-1147) | C192: =ROUND((1-Skidka3)*23.3,2) -> 23.3 | D192: 45 / 720 | F192: 0 | G192: фото | K192: **
A193: 129989 | B193: Лизун "Жвачка для рук" в яйце (FJ-1393) по 16шт. в ведре | C193: =ROUND((1-Skidka3)*43.3,2) -> 43.3 | D193: 16 / 576 | F193: 0 | G193: фото | K193: **
A194: 129984 | B194: Лизун "Животные" в ассорт. (FJ-1034) | C194: =ROUND((1-Skidka3)*19.15,2) -> 19.15 | D194: 70 / 1120 | F194: 0 | G194: фото | K194: **
A195: 136829 | B195: Лизун "Конфета - драже m" малый (FJ-1345) | C195: =ROUND((1-Skidka3)*10,2) -> 10 | D195: 24 / 48 / 960 | F195: 0 | G195: фото | K195: **
A196: 123397 | B196: Лизун "Крокодил" (FJ-1108) | C196: =ROUND((1-Skidka3)*23.3,2) -> 23.3 | D196: 30 / 480 | F196: 0 | G196: фото | K196: **
A197: 93381 | B197: Лизун "Осьминог светящийся" в пробирке (МО-501) | C197: =ROUND((1-Skidka3)*70,2) -> 70 | D197: 12 / 96 | F197: 0 | G197: фото | K197: **
A198: 146955 | B198: Лизун "Пробирка со змейкой" (SG-96) | C198: =ROUND((1-Skidka3)*70,2) -> 70 | D198: 12 / 96 | F198: 0 | G198: фото | K198: **
A199: 146953 | B199: Лизун "Улыбка" (MO-505) с доп. формой для выдавливания рожицы | C199: =ROUND((1-Skidka3)*49.15,2) -> 49.15 | D199: 12 / 192 | F199: 0 | G199: фото | K199: **
A200: 109772 | B200: Лизун "Части тела" в большой банке (SG-95) | C200: =ROUND((1-Skidka3)*70,2) -> 70 | D200: 12 / 96 | F200: 0 | G200: фото | K200: **
A201: 86979 | B201: Лизун в банке 60*45мм (LZ-860) с насекомым | C201: =ROUND((1-Skidka3)*44.15,2) -> 44.15 | D201: 24 / 288 | F201: 0 | G201: фото | K201: **
... 4299 more rows

Sheet Поступления
A1: ПОСЛЕДНИЕ ПОСТУПЛЕНИЯ ТОВАРА
A3: код | B3: наименование | C3: цена оптовая
A4: Игрушки
A5: 149416 | B5: Автокран инерц. (2019D, 1673792) | C5: 223.7 | D5: фото
A6: 115927 | B6: Автомобиль бортовой "Майк", в сеточке (55477) Полесье | C6: 779.1 | D6: фото
A7: 124345 | B7: Бетономешалка-мини (56542) Полесье | C7: 273.6 | D7: фото
A8: 149445 | B8: Вертолет р\у летающий (SG8808, 1707527) | C8: 1586.8 | D8: фото
A9: 149430 | B9: Вертолет р\у летающий, с гироскопом (СН060-1, 1183585) | C9: 1566.1 | D9: фото
A10: 149405 | B10: Ветрячок (5337) | C10: 54.74 | D10: фото
A11: 148736 | B11: Ветрячок (5340) | C11: 54.74 | D11: фото
A12: 149406 | B12: Ветрячок (5343) | C12: 20.21 | D12: фото
A13: 149407 | B13: Воздушный змей с рисунком "Бабочка" 120см (5447) | C13: 87.01 | D13: фото
A14: 149408 | B14: Воздушный змей с рисунком "Бабочка" 155см (5448) | C14: 143.2 | D14: фото
A15: 146888 | B15: Воздушный змей с рисунком "Орел" 110см (5440) | C15: 61.76 | D15: фото
A16: 146892 | B16: Воздушный змей с рисунком "Самолет" 140см (5444) | C16: 79.53 | D16: фото
A17: 146893 | B17: Воздушный змей с рисунком "Самолет" 170см (5445) | C17: 133.8 | D17: фото
A18: 149414 | B18: Грузовик инерц. (2019А, 1673789) | C18: 194.7 | D18: фото
A19: 149429 | B19: Гусеница заводная (643, 1141767) по 12шт. в блоке | C19: 67.87 | D19: фото
A20: 149446 | B20: Дартс с 4 дротиками (5140) 30см | C20: 214 | D20: фото
A21: 149447 | B21: Дартс с 6 дротиками (5142) 42,5см | C21: 332.7 | D21: фото
A22: 149441 | B22: Жук-перевертыш на батар. (SH689, 1553573) в коробке | C22: 123.2 | D22: фото
A23: 149326 | B23: Зайка в платье, 20см. (Белоруссия) | C23: 288 | D23: фото
A24: 149323 | B24: Зайка с сердцем мини (Белоруссия) | C24: 156 | D24: фото
A25: 138245 | B25: Зайка с сердцем, 30см. (Белоруссия) | C25: 360 | D25: фото
A26: 142925 | B26: Заяц с сердцем, 40см. (Белоруссия) | C26: 540 | D26: фото
A27: 144518 | B27: Игрушка - антистресс "Гусеница" 45см (Белоруссия) | C27: 360 | D27: фото
A28: 149319 | B28: Игрушка - антистресс "Кит" (Белоруссия) | C28: 348 | D28: фото
A29: 148284 | B29: Игрушка - антистресс "Машинка" (Белоруссия) | C29: 372 | D29: фото
A30: 51234 | B30: Кегли 9шт. (6447) Полесье | C30: 424.3 | D30: фото
A31: 144513 | B31: Кот - подушка 55см (Белоруссия) 2цв. в ассортименте | C31: 528 | D31: фото
A32: 144932 | B32: Кресло квадратное рисованное гладкое (Белоруссия) | C32: 1080 | D32: фото
A33: 142933 | B33: Кресло медведь (Белоруссия) | C33: 900 | D33: фото
A34: 143176 | B34: Кресло Футбол (Белоруссия) | C34: 900 | D34: фото
A35: 149455 | B35: Кузнечик 1шт., в ассортименте (5429) по 100шт. в блоке | C35: 14.29 | D35: фото
A36: 144510 | B36: Лупатик - брелок, в ассорт. (Белорусия) | C36: 108 | D36: фото
A37: 149412 | B37: Машина "Цистерна" инерц. (109, 1638280) | C37: 168.5 | D37: фото
A38: 149425 | B38: Машина военная инерционная (1501-192, 1616820) в коробке | C38: 157.8 | D38: фото
A39: 88922 | B39: Машина для катания детей (43801) самосвал "Буран" №2, красно-голубая Полесье | C39: 1360.4 | D39: фото
A40: 97295 | B40: Машина для катания детей (46154) "Крокодильчик" Полесье | C40: 1490 | D40: фото
A41: 137653 | B41: Машина для катания детей (62932) Джип №2 голубой, с ручкой Полесье | C41: 1732 | D41: фото
A42: 143276 | B42: Машина для катания детей (63007) Джип "Викинг" №2 красный, с ручкой Полесье | C42: 2663 | D42: фото
A43: 52423 | B43: Машина для катания детей (6614) самосвал "Премиум-2" Полесье | C43: 1210.8 | D43: фото
A44: 50899 | B44: Машина для катания детей (7956) трактор "Митя" Полесье | C44: 1382 | D44: фото
A45: 149431 | B45: Машина заводная (610-1, 1249050) по 12шт. в блоке | C45: 60.08 | D45: фото
A46: 149428 | B46: Машина инерц. "Пожарная" (1501-203, 1616830) в коробке | C46: 164.3 | D46: фото
A47: 149426 | B47: Машина инерц. "Полиция" (1501-194, 1616822) в коробке | C47: 157.8 | D47: фото
A48: 149457 | B48: Машина инерц. "Полиция" в пакете (737А, 1628146) | C48: 157.4 | D48: фото
A49: 149456 | B49: Машина инерц. "Скорая помощь" в пакете (737В, 1628147) | C49: 157.4 | D49: фото
A50: 149415 | B50: Машина инерц. (2019С, 1673791) | C50: 216.2 | D50: фото
A51: 149427 | B51: Машина инерционная (1501-201, 1616827) в коробке | C51: 164.3 | D51: фото
A52: 149461 | B52: Машина на батарейках "Полиция", в коробке (02В, 1651241) | C52: 204 | D52: фото
A53: 149459 | B53: Машина на батарейках "Полиция", в коробке (361-3А, 1592489) | C53: 149.3 | D53: фото
A54: 149458 | B54: Машина на батарейках "Полиция", в коробке (ЕТ6969-30, 1599482) | C54: 145.7 | D54: фото
A55: 149462 | B55: Машина на батарейках "Скорая помощь", в коробке (03В, 1651237) | C55: 204 | D55: фото
A56: 149443 | B56: Машина-перевертыш на батар. (V315, 1557069) в коробке | C56: 111.5 | D56: фото
A57: 149460 | B57: Машина-перевертыш на батарейках "Полиция", в коробке (GS-117, 1589796) | C57: 117.8 | D57: фото
A58: 149465 | B58: Машинка заводная (635, 1671773) по 12шт. в блоке | C58: 88.88 | D58: фото
A59: 149320 | B59: Микки-Маус/Минни-Маус 30см. (Белоруссия) | C59: 276 | D59: фото
A60: 148570 | B60: Мишка бурый с сердцем, 30см. (Белоруссия) | C60: 420 | D60: фото
A61: 149321 | B61: Мишка бурый, 60см. (Белоруссия) | C61: 780 | D61: фото
A62: 149327 | B62: Мишка с красным сердцем "Тиамо", 30см (Белоруссия) | C62: 384 | D62: фото
A63: 143993 | B63: Мишка с красным сердцем, 40см (Белоруссия) | C63: 480 | D63: фото
A64: 149322 | B64: Мишка с сердцем мини (Белоруссия) | C64: 156 | D64: фото
A65: 149468 | B65: Молоточек музыкальный (169, 1700383) | C65: 97 | D65: фото
A66: 149470 | B66: Молоточек музыкальный (8105В, 1685634) по 12шт. в блоке | C66: 130 | D66: фото
A67: 149435 | B67: Молоточек музыкальный (828С, 1607131) | C67: 55.74 | D67: фото
A68: 149469 | B68: Молоточек музыкальный (8833, 1629367) | C68: 76.1 | D68: фото
A69: 97300 | B69: Мотоцикл для катания детей (46512) "МХ" Полесье | C69: 1877 | D69: фото
A70: 149410 | B70: Мыльные пузыри "Бабочки" (2018-38А, 1667760) по 24шт. в блоке | C70: 49.43 | D70: фото
A71: 133738 | B71: Мыльные пузыри "Зверушки" (1030А, 1498047) по 36шт. в блоке | C71: 34.49 | D71: фото
A72: 146796 | B72: Мыльные пузыри "Зверушки" (6668С-10, 1558564) по 24шт. в блоке | C72: 52.28 | D72: фото
A73: 149409 | B73: Мыльные пузыри "Меч" (811, 1553606) по 24шт. в блоке | C73: 39.69 | D73: фото
A74: 146797 | B74: Мыльные пузыри "Смайлики" (6668С-4, 1558579) по 24шт. в блоке | C74: 52.28 | D74: фото
A75: 149449 | B75: Мяч ортопедический с ручками (5274) диам. 50см | C75: 201.4 | D75: фото
A76: 149451 | B76: Мяч ортопедический с ручками (5277) диам. 45см | C76: 184.3 | D76: фото
A77: 149448 | B77: Мяч ортопедический с ручкой (5272) диам. 55см | C77: 217.6 | D77: фото
A78: 149450 | B78: Мяч ортопедический с ручкой (5275) диам. 45см | C78: 184.3 | D78: фото
A79: 149438 | B79: Набор жуков 12шт. в пакете (КС01-5, 1479938) | C79: 100.7 | D79: фото
A80: 149418 | B80: Набор машин 2шт. "Спецтехника" (1963-АВ, 1573423) | C80: 106.6 | D80: фото
A81: 149420 | B81: Набор машин 4шт. "Спецтехника" (399-4, 1668723) | C81: 105.4 | D81: фото
A82: 146785 | B82: Набор насекомых 10шт. в пакете (866-В611, 1496587) | C82: 107.9 | D82: фото
A83: 149436 | B83: Набор насекомых 12шт. в пакете (КС01-1, 1479934) | C83: 112.4 | D83: фото
A84: 149437 | B84: Набор насекомых 12шт. в пакете (КС01-2, 1479935) | C84: 80.91 | D84: фото
A85: 149440 | B85: Набор насекомых 18шт. в пакете (866-С611, 1496597) | C85: 205 | D85: фото
A86: 149439 | B86: Набор пресмыкающихся 12шт. в пакете (PX01-2, 1479951) | C86: 100.7 | D86: фото
A87: 142885 | B87: Наручники металл. (4874) в коробке | C87: 52.14 | D87: фото
A88: 149444 | B88: Паровоз на батар., в блистере (19057, 1638885) | C88: 240.1 | D88: фото
A89: 149442 | B89: Паровоз-перевертыш на батар. (V311, 1557066) в коробке | C89: 111.5 | D89: фото
A90: 149452 | B90: Паук 1шт., в ассортименте (5427) по 100шт. в блоке | C90: 13.4 | D90: фото
A91: 149453 | B91: Паук 1шт., в ассортименте (5428) по 100шт. в блоке | C91: 14.29 | D91: фото
A92: 146490 | B92: Подушка - ослик (Белоруссия) | C92: 372 | D92: фото
A93: 149463 | B93: Поезд металлический, в инд. коробке (TN-1090, 1700573) по 24шт. в блоке | C93: 139 | D93: фото
A94: 149413 | B94: Пожарная машина инерц. (1181, 1673962) | C94: 216.2 | D94: фото
A95: 149417 | B95: Пожарная машина инерц. (333-5, 1546412) | C95: 146.8 | D95: фото
A96: 149467 | B96: Пупс в пакете (SY1231, 1698633) в ассорт. | C96: 217 | D96: фото
A97: 148313 | B97: Рюкзак мягкий "Ромашка" (Белоруссия) | C97: 276 | D97: фото
A98: 141305 | B98: Рюкзак мягкий со зверушкой, в ассортименте (Белоруссия) | C98: 360 | D98: фото
A99: 149411 | B99: Самосвал инерц. (106, 1638276) | C99: 153.5 | D99: фото
A100: 149324 | B100: Свинка в полосатой кофточке, 17см. (Белоруссия) | C100: 168 | D100: фото
A101: 149325 | B101: Свинка Лупатик, 20см. (Белоруссия) | C101: 276 | D101: фото
A102: 149454 | B102: Скорпион 1шт., в ассортименте (5425) по 30шт. в блоке | C102: 40.75 | D102: фото
A103: 142119 | B103: Собака - подушка (Белоруссия) | C103: 336 | D103: фото
A104: 149434 | B104: Собака заводная (665, 1451334) по 12шт. в блоке | C104: 68.55 | D104: фото
A105: 149464 | B105: Собачка заводная (768, 1671784) по 12шт. в блоке | C105: 89.15 | D105: фото
A106: 149466 | B106: Стройтехника заводная (90316, 1689450) по 12шт. в блоке | C106: 59.27 | D106: фото
A107: 149419 | B107: Стройтехника инерционная (215А-12А, 9060380) в ассорт. | C107: 97.99 | D107: фото
A108: 149433 | B108: Телефон мобил. муз. "Beauty" раскладной (XN087K 12465140) на блистере | C108: 43.15 | D108: фото
A109: 149432 | B109: Телефон мобил. муз. "Funny mobilo" раскладной (XN087L, 1246513) на блистере | C109: 43.15 | D109: фото
A110: 71802 | B110: Трактор "Алтай" с прицепом №1 и ковшом (35349) Полесье | C110: 421.4 | D110: фото
A111: 71803 | B111: Трактор "Алтай" с прицепом №2 (35356) Полесье | C111: 404.7 | D111: фото
A112: 93611 | B112: Трактор "Крепыш" (44778) Полесье | C112: 123.4 | D112: фото
A113: 93617 | B113: Трактор "Крепыш" + полуприцеп-лесовоз (44815) Полесье | C113: 318.4 | D113: фото
A114: 93615 | B114: Трактор "Крепыш" с прицепом №1 (44792) Полесье | C114: 242.5 | D114: фото
A115: 106837 | B115: Трактор "Крепыш" с прицепом №2 (44563) Полесье | C115: 245.4 | D115: фото
A116: 93616 | B116: Трактор "Крепыш" с прицепом №2 и ковшом (44808) Полесье | C116: 268.6 | D116: фото
A117: 71792 | B117: Трактор "Мастер" (35240) Полесье | C117: 123.4 | D117: фото
A118: 71793 | B118: Трактор "Мастер" с прицепом №1 (35257) Полесье | C118: 242.5 | D118: фото
A119: 71794 | B119: Трактор "Мастер" с прицепом №1 и ковшом (35264) Полесье | C119: 265.6 | D119: фото
A120: 71795 | B120: Трактор "Мастер" с прицепом №2 (35271) Полесье | C120: 245.4 | D120: фото
A121: 71796 | B121: Трактор "Мастер" с прицепом №2 и ковшом (35288) Полесье | C121: 268.6 | D121: фото
A122: 95372 | B122: Трактор "Силач" с полуприцепом-лесовозом (45041) Полесье | C122: 524.9 | D122: фото
A123: 93780 | B123: Трактор "Силач" с прицепом №1 (44952) Полесье | C123: 396.7 | D123: фото
A124: 50897 | B124: Трактор "Чемпион" с ковшом (0476) Полесье | C124: 518.5 | D124: фото
A125: 51243 | B125: Трактор "Чемпион" с лопатой и ковшом (0513) Полесье | C125: 594 | D125: фото
A126: 149421 | B126: Трактор инерционный (1608-1, 1594825) в блистере | C126: 152.6 | D126: фото
A127: 149422 | B127: Трактор инерционный, с прицепом (2016-10, 1641033) в блистере | C127: 92.66 | D127: фото
A128: 149424 | B128: Трактор инерционный, с прицепом (986-15С, 1545556) в блистере | C128: 204.1 | D128: фото
A129: 149423 | B129: Трактор инерционный, с прицепом для перевозки животных (986-2С, 1542702) в блистере | C129: 197.8 | D129: фото
A130: 71777 | B130: Трактор-погрузчик "Геракл" (22370) Полесье | C130: 167.3 | D130: фото
A131: 106835 | B131: Трактор-погрузчик "Крепыш" (44549) Полесье | C131: 142.3 | D131: фото
A132: 106841 | B132: Трактор-погрузчик "Силач" (45058) Полесье | C132: 256.3 | D132: фото
A133: 71808 | B133: Трактор-погрузчик "Умелец" (35400) Полесье | C133: 175.3 | D133: фото
A134: 71807 | B134: Трактор-экскаватор "Алтай" (35394) Полесье | C134: 291.4 | D134: фото
A135: 93612 | B135: Трактор-экскаватор "Крепыш" (44785) Полесье | C135: 159.4 | D135: фото
A136: 71799 | B136: Трактор-экскаватор "Мастер" (35318) Полесье | C136: 159.4 | D136: фото
A137: 106842 | B137: Трактор-экскаватор "Силач" (45065) Полесье | C137: 291.4 | D137: фото
A138: 148286 | B138: Фламинго, 40см. (Белоруссия) | C138: 204 | D138: фото
A139: Канцелярские товары
A140: 142149 | B140: Акварель Creativiki 6цв. карт. уп., без кисти (АКВК06КР) | C140: 15.38 | D140: фото
A141: 117671 | B141: Альбом для акварели ArtSpace 20л. (Аа20_7898) на склейке | C141: 61.56 | D141: фото
A142: 125581 | B142: Альбом для рисования ArtSpace 16л. на скрепке "Мультяшки" (А16ф_9135) | C142: 15.73 | D142: фото
A143: 149243 | B143: Альбом для рисования ArtSpace 20л. на скрепке "Пушистые малыши" (А20_20309) обложка картон | C143: 22.02 | D143: фото
A144: 149244 | B144: Альбом для рисования ArtSpace 24л. на скрепке "Авто" (А24ф_20289) обложка офсет | C144: 20.61 | D144: фото
A145: 149245 | B145: Альбом для рисования ArtSpace 24л. на скрепке "Акварельные мечты" (А24ф_20285) обложка офсет | C145: 21.65 | D145: фото
A146: 137234 | B146: Альбом для рисования ArtSpace 24л. на скрепке "Питомцы. My sunshine" (А24_14146) обложка картон | C146: 22.88 | D146: фото
A147: 149250 | B147: Альбом для рисования ArtSpace 32л. на склейке "Природа. Freedom" (А32кл_14807) обложка картон | C147: 41.96 | D147: фото
A148: 149251 | B148: Альбом для рисования ArtSpace 32л. на склейке "Природа. Inspiration" (А32кл_3767) ВД-лак, обложка картон | C148: 41.61 | D148: фото
A149: 149252 | B149: Альбом для рисования ArtSpace 32л. на скрепке "Животные. Wild animal" (А32_14160) обложка картон | C149: 28.22 | D149: фото
A150: 149253 | B150: Альбом для рисования ArtSpace 32л. на скрепке "Красивые яхты" (А32ГЛ_14154) УФ-лак, обложка картон | C150: 29.84 | D150: фото
A151: 149254 | B151: Альбом для рисования ArtSpace 32л. на скрепке "Стиль. Follow you passion" (А32Э_14963) обложка картон | C151: 24.9 | D151: фото
A152: 149255 | B152: Альбом для рисования ArtSpace 32л. на скрепке "Цветы. The flower" (А32ГЛ_9087) глянц. лак, обложка картон | C152: 29.84 | D152: фото
A153: 149246 | B153: Альбом для рисования ArtSpace 32л. на спирали "Авто. Rise&grind" (А32спТС_9161) фактурное тиснение, обложка картон | C153: 35.56 | D153: фото
A154: 138061 | B154: Альбом для рисования ArtSpace 32л. на спирали "Авто. Your dreams" (А32сп_14480) обложка картон | C154: 34.24 | D154: фото
A155: 138062 | B155: Альбом для рисования ArtSpace 32л. на спирали "Модные девчонки. New York" (А32сп_14478) обложка картон | C155: 34.24 | D155: фото
A156: 149247 | B156: Альбом для рисования ArtSpace 32л. на спирали "Питомцы. Веселые друзья" (А32спВЛ_9169) УФ-лак, обложка картон | C156: 36.68 | D156: фото
A157: 149248 | B157: Альбом для рисования ArtSpace 32л. на спирали "Природа. Тигры" (А32спТС_9163) фактурное тиснение, обложка картон | C157: 35.56 | D157: фото
A158: 149249 | B158: Альбом для рисования ArtSpace 32л. на спирали "Путешествия. Grand city" (А32спТС_9165) фактурное тиснение, обложка картон | C158: 35.56 | D158: фото
A159: 149352 | B159: Альбом для рисования ArtSpace 40л. на скрепке "Акварель. Город" (А40_9093) обложка картон | C159: 33.76 | D159: фото
A160: 149353 | B160: Альбом для рисования ArtSpace 40л. на скрепке "Веселые мультяшки" (А40_20249) обложка картон | C160: 33.76 | D160: фото
A161: 149354 | B161: Альбом для рисования ArtSpace 40л. на скрепке "Живопись. Натюрморт" (А40Ф_9107) тиснение фольгой, обложка картон | C161: 38.7 | D161: фото
A162: 149355 | B162: Альбом для рисования ArtSpace 40л. на скрепке "Животные. New story" (А40_14176) обложка картон | C162: 33.87 | D162: фото
A163: 149356 | B163: Альбом для рисования ArtSpace 40л. на скрепке "Лесные зарисовки" (А40Э_20303) обложка офсет | C163: 32.12 | D163: фото
A164: 149357 | B164: Альбом для рисования ArtSpace 40л. на скрепке "Путешествия. Romantic travels" (А40Э_14967) обложка картон | C164: 32.12 | D164: фото
A165: 149358 | B165: Альбом для рисования ArtSpace 40л. на скрепке "Стиль. Sketchbook" (А40Ф_9105) тиснение фольгой, обложка картон | C165: 38.7 | D165: фото
A166: 149359 | B166: Альбом для рисования ArtSpace 40л. на скрепке "Цветная мозаика" (А40_20247) обложка картон | C166: 33.76 | D166: фото
A167: 149360 | B167: Альбом для рисования ArtSpace 40л. на скрепке "Цветы. Still life" (А40Э_14971) обложка картон | C167: 32.12 | D167: фото
A168: 138063 | B168: Альбом для рисования ArtSpace 40л. на спирали "Авто. Forward to the future" (А40сп_14488) обложка картон | C168: 39.79 | D168: фото
A169: 138065 | B169: Альбом для рисования ArtSpace 40л. на спирали "Животные. Wild animal" (А40сп_14490) ВД-лак, обложка картон | C169: 39.79 | D169: фото
A170: 149314 | B170: Альбом для рисования ArtSpace 40л. на спирали "Модные девчонки. Do what you love" (А40сп_14486) обложка картон | C170: 39.79 | D170: фото
A171: 149315 | B171: Альбом для рисования ArtSpace 40л. на спирали "Питомцы. Котята" (А40сп_9179) обложка картон | C171: 39.79 | D171: фото
A172: 149316 | B172: Альбом для рисования ArtSpace 40л. на спирали "Природа. Living on earth" (А40спВЛ_9185) выб. лак, обложка картон | C172: 41.45 | D172: фото
A173: 149317 | B173: Альбом для рисования ArtSpace 40л. на спирали "Путешествия. Let`s inspire" (А40сп_9181) обложка картон | C173: 39.79 | D173: фото
A174: 138067 | B174: Альбом для рисования ArtSpace 40л. на спирали "Стиль. Tender moments" (А40сп_14482) ВД-лак, обложка картон | C174: 39.98 | D174: фото
A175: 149318 | B175: Альбом для рисования ArtSpace 40л. на спирали "Стиль. The adventure begins" (А40спТЛ_9193) ТВИН-лак, обложка картон | C175: 41.92 | D175: фото
A176: 138068 | B176: Альбом для рисования ArtSpace 40л. на спирали "Цветы. Spring the air" (А40сп_14484) ВД-лак | C176: 39.98 | D176: фото
A177: 139008 | B177: Альбом для рисования ArtSpace 48л. на спирали "Цветы. Tender garden" (А48сп_14492) | C177: 49.99 | D177: фото
A178: 78533 | B178: Альбом для рисования Hatber 40л. "Country cars" (40А4вмВ) на скрепке, обложка-картон, выборочный лак | C178: 34.8 | D178: фото
A179: 132983 | B179: Альбом для рисования Мульти-Пульти 40л. с раскраской "Приключения Енота" (А40_11609) | C179: 37.15 | D179: фото
A180: 149351 | B180: Бейдж ОФИСМАГ 12*90 мм вертикальный, на зеленом шнурке 45см. (235721) | C180: 25.24 | D180: фото
A181: 144074 | B181: Бизнес-блокнот А5 80л. "Путешествия. Air mail" ("OfficeSpace", ББ5т80тф_10070) тонир.блок, тиснение фольгой | C181: 70.76 | D181: фото
A182: 149368 | B182: Бизнес-блокнот А5 120л. "Винтажные цветы" ("OfficeSpace", ББ5т120_6581) | C182: 67.17 | D182: фото
A183: 149369 | B183: Бизнес-блокнот А5 120л. "Красота природы" ("OfficeSpace", ББ5т120_13845) | C183: 67.17 | D183: фото
A184: 149370 | B184: Бизнес-блокнот А5 120л. "Мужской стиль" ("OfficeSpace", ББ5т120_13844) | C184: 67.17 | D184: фото
A185: 148195 | B185: Бланк "Благодарность родителям" А4 (арт. 1446) мелованный картон | C185: 4.31 | D185: фото
A186: 70393 | B186: Бланк "Благодарность" А4 (арт. 300) мелованный картон | C186: 4.31 | D186: фото
A187: 95493 | B187: Бланк "Благодарность" А4 (арт. 978) мелованный картон | C187: 4.31 | D187: фото
A188: 149131 | B188: Бланк "Благодарственное письмо" А4 (арт. 2124) мелованный картон | C188: 4.31 | D188: фото
A189: 124977 | B189: Бланк "Благодарственное письмо" А4 (арт. 2473) мелованный картон | C189: 4.31 | D189: фото
A190: 110059 | B190: Бланк "Благодарственное письмо" А4 (арт. 295) мелованный картон | C190: 4.31 | D190: фото
A191: 149132 | B191: Бланк "Благодарственное письмо" А4 (арт. 3308) мелованный картон | C191: 4.31 | D191: фото
A192: 106326 | B192: Бланк "Благодарственное письмо" А4 (арт. 985) мелованный картон | C192: 4.31 | D192: фото
A193: 110061 | B193: Бланк "Грамота детская" А4 (арт. 309) мелованный картон | C193: 4.31 | D193: фото
A194: 124989 | B194: Бланк "Грамота школьная" А4 (арт. 306) мелованный картон | C194: 4.31 | D194: фото
A195: 112942 | B195: Бланк "Грамота" А4 (арт. 1063) мелованный картон | C195: 4.31 | D195: фото
A196: 103770 | B196: Бланк "Грамота" А4 (арт. 1440) мелованный картон | C196: 4.31 | D196: фото
A197: 103767 | B197: Бланк "Грамота" А4 (арт. 1499) мелованный картон | C197: 4.31 | D197: фото
A198: 119191 | B198: Бланк "Грамота" А4 (арт. 1511) мелованный картон | C198: 4.31 | D198: фото
A199: 119192 | B199: Бланк "Грамота" А4 (арт. 1512) мелованный картон | C199: 4.31 | D199: фото
A200: 149133 | B200: Бланк "Грамота" А4 (арт. 2113) мелованный картон | C200: 4.31 | D200: фото
A201: 149134 | B201: Бланк "Грамота" А4 (арт. 2114) мелованный картон | C201: 4.31 | D201: фото
... 636 more rows
